fUSD/lending_fUSD_20260419
["ID","MTS","AMOUNT","RATE_DAILY","PERIOD"]
[420823997,1776588632677,-255.0,9.314e-05,2]
[420823998,1776588632686,-500.0,9.425e-05,2]
[420824000,1776588632696,-500.0,9.509e-05,2]
[420824002,1776588632705,-1500.0,9.509e-05,2]
[420824004,1776588632715,-1000.0,9.57e-05,2]
[420824005,1776588632724,-2500.0,9.633e-05,2]
[420824007,1776588632733,-2591.0,9.67e-05,2]
[420824009,1776588632742,-9999.99,9.67e-05,2]
[420824011,1776588632751,-14127.93,9.67e-05,2]
[420824012,1776588632761,-725.83,9.678e-05,2]
[420824013,1776588632770,-167.44,9.733e-05,2]
[420824014,1776588632779,-242.88,9.734e-05,2]
[420824015,1776588632788,-3950.36,9.74e-05,2]
[420824016,1776588632797,-256.17,9.777e-05,2]
[420824017,1776588632806,-208.3870109,9.778e-05,2]
[420824018,1776588632815,-263.28769274,9.787e-05,2]
[420824019,1776588632824,-1034.0,9.814e-05,5]
[420824020,1776588632834,-260.0,9.863e-05,2]
[420824021,1776588632843,-162.97914855,9.871e-05,2]
[420824022,1776588632852,-200.0,0.0001,2]
[420824023,1776588632862,-256.17,0.00010051,2]
[420824024,1776588632871,-2351.0,0.00010125,2]
[420824025,1776588632882,-500.0,0.00010144,2]
[420824026,1776588632892,-181.76305584,0.00010144,2]
[420824027,1776588632901,-3529.0,0.00010145,2]
[420824028,1776588632911,-1048.0,0.00010145,2]
[420824029,1776588632921,-6030.0,0.00010145,2]
[420824030,1776588632930,-518.009,0.00010145,2]
[420824031,1776588632942,-167.44,0.0001024,2]
[420824032,1776588632951,-433.0,0.00010246,2]
[420824033,1776588632960,-626.11063624,0.0001025,2]
[420824034,1776588632969,-256.18,0.00010325,2]
[420824035,1776588632979,-1600.0,0.00010332,2]
[420824036,1776588632988,-500.92228137,0.00010342,2]
[420824037,1776588632998,-250.0,0.00010345,2]
[420824038,1776588633007,-250.0,0.00010345,2]
[420824039,1776588633017,-250.0,0.00010345,2]
[420824040,1776588633026,-500.0,0.00010364,2]
[420824041,1776588633035,-2000.0,0.00010391,2]
[420824042,1776588633044,-151.0,0.000104,2]
[420824043,1776588633054,-408.671938,0.000104,2]
[420824044,1776588633064,-408.671938,0.000104,2]
[420824045,1776588633074,-408.671938,0.000104,2]
[420824046,1776588633084,-408.671938,0.000104,2]
[420824047,1776588633094,-7437.9469583,0.000104,2]
[420824048,1776588633103,-823.79574961,0.00010426,2]
[420824049,1776588633113,-151.0,0.00010457,2]
[420824050,1776588633122,-161.0,0.0001046,2]
[420824051,1776588633132,-161.0,0.0001046,2]
[420824052,1776588633141,-151.0,0.00010499,2]
[420824053,1776588633151,-151.0,0.00010499,2]
[420824054,1776588633160,-151.0,0.00010499,2]
[420824055,1776588633170,-151.0,0.00010499,2]
[420824056,1776588633179,-500.0,0.00010499,2]
[420824057,1776588633189,-500.0,0.00010499,2]
[420824058,1776588633199,-500.0,0.00010499,2]
[420824059,1776588633208,-467.3804291,0.00010499,2]
[420824060,1776588633217,-500.0,0.00010499,2]
[420824061,1776588633227,-500.0,0.00010499,2]
[420824062,1776588633236,-500.0,0.00010499,2]
[420824063,1776588633246,-500.0,0.00010499,2]
[420824064,1776588633255,-500.0,0.00010499,2]
[420824065,1776588633264,-500.0,0.00010499,2]
[420824066,1776588633274,-500.0,0.00010499,2]
[420824067,1776588633284,-500.0,0.00010499,2]
[420824068,1776588633294,-500.0,0.00010499,2]
[420824069,1776588633303,-500.0,0.00010499,2]
[420824070,1776588633312,-500.0,0.00010499,2]
[420824071,1776588633322,-500.0,0.00010499,2]
[420824072,1776588633331,-500.0,0.00010499,2]
[420824073,1776588633340,-500.0,0.00010499,2]
[420824074,1776588633352,-424.47172469,0.00010499,2]
[420824075,1776588633371,-75.52827531,0.00010499,2]
[420824076,1776588633380,-428.17487203,0.00010499,2]
[420824077,1776588633391,-71.82512797,0.00010499,2]
[420824078,1776588633401,-500.0,0.00010499,2]
[420824079,1776588633410,-500.0,0.00010499,2]
[420824080,1776588633419,-500.0,0.00010499,2]
[420824081,1776588633430,-500.0,0.00010499,2]
[420824082,1776588633440,-500.0,0.00010499,2]
[420824083,1776588633451,-500.0,0.00010499,2]
[420824084,1776588633462,-500.0,0.00010499,2]
[420824085,1776588633471,-500.0,0.00010499,2]
[420824086,1776588633481,-159.0,0.000105,2]
[420824087,1776588633491,-538.18293477,0.000105,5]
[420824088,1776588633502,-1545.57344224,0.000105,5]
[420824089,1776588633514,-57.94413162,0.000105,5]
[420824090,1776588633525,-449.80508817,0.000105,5]
[420824101,1776588639302,-308.55414,0.000105,5]
[420824102,1776588639362,-433.95046642,0.000105,5]
[420824103,1776588639372,-320.73193368,0.000105,5]
[420824108,1776588642357,-427.231402,0.000105,5]
[420824130,1776588644414,-85.53921512,0.000105,5]
[420824131,1776588644424,-500.0,0.00010527,2]
[420824132,1776588644434,-157.61622061,0.00010527,2]
[420824133,1776588644444,-203.2338541,0.00010548,2]
[420824134,1776588644453,-502.42127331,0.0001055,2]
[420824135,1776588644463,-500.77330831,0.0001055,2]
[420824136,1776588644472,-375.57924259,0.0001055,2]
[420824137,1776588644488,-124.62981073,0.0001055,2]
[420824138,1776588644499,-2523.97678861,0.00010682,2]
[420824139,1776588644508,-93.76609342,0.00010748,2]
[420824140,1776588644532,-73.67390658,0.00010748,2]
[420824141,1776588644543,-480.92373544,0.00010789,2]
[420824142,1776588644556,-875.50000001,0.00010789,2]
[420824143,1776588645101,-1444.01541444,0.00010265,2]
[420824144,1776588645112,-934.97489855,0.00010265,2]
[420824145,1776588645146,-1400.00968701,0.00010265,2]
[420824146,1776588645156,-303.20656045,0.00010789,2]
[420824147,1776588645165,-150.0,0.000108,2]
[420824148,1776588645176,-150.0,0.000108,2]
[420824149,1776588645185,-150.0,0.00010834,2]
[420824150,1776588645194,-500.0,0.00010873,2]
[420824151,1776588645204,-500.0,0.00010873,2]
[420824152,1776588645212,-171.31417741,0.00010873,2]
[420824153,1776588645221,-151.0,0.00010897,2]
[420824154,1776588645231,-208.3870109,0.00010897,2]
[420824155,1776588645241,-155.0,0.00010899,2]
[420824156,1776588645252,-150.0,0.000109,2]
[420824157,1776588645261,-1103.81365106,0.000109,2]
[420824161,1776588646696,-12430.712656,0.000109,2]
[420824162,1776588646707,-361.86570411,0.000109,2]
[420824163,1776588646717,-150.0,0.000109,2]
[420824164,1776588646727,-553.45622348,0.000109,2]
[420824165,1776588646739,-3738.40000069,0.000109,2]
[420824166,1776588646750,-903.39663765,0.000109,2]
[420824167,1776588646762,-6181.99337938,0.000109,2]
[420824168,1776588646774,-686.36532528,0.000109,2]
[420824169,1776588646786,-260.17346032,0.000109,2]
[420824170,1776588646801,-1761.42095698,0.000109,2]
[420824180,1776588651820,150.0,0.0003287,120]
[420824185,1776588946983,1010.15,0.000328,120]
[420824186,1776588948551,1010.15,0.0003284,120]
[420824199,1776589422431,264.49,0.0003269,120]
[420824293,1776589832591,-257.0,8.268e-05,2]
[420824294,1776589832601,-250.0,8.268e-05,2]
[420824295,1776589832610,-674.5586,8.268e-05,2]
[420824296,1776589832620,-67.31069294,8.364e-05,2]
[420824297,1776589832635,-303.72702952,8.364e-05,2]
[420824298,1776589832647,-828.96227754,8.364e-05,2]
[420824299,1776589832656,-422.87600336,8.365e-05,2]
[420824300,1776589832675,-77.12399664,8.365e-05,2]
[420824301,1776589832685,-500.0,8.365e-05,2]
[420824302,1776589832694,-96.85473018,8.365e-05,2]
[420824303,1776589832705,-403.14526982,8.365e-05,2]
[420824304,1776589832714,-226.12632182,8.365e-05,2]
[420824305,1776589832724,-151.0,8.365e-05,2]
[420824306,1776589832733,-250.0,9.095e-05,2]
[420824307,1776589832742,-295.81113504,9.095e-05,2]
[420824308,1776589832751,-300.0,9.095e-05,2]
[420824309,1776589832760,-1432.55329158,9.2e-05,2]
[420824310,1776589832771,-247.44670842,9.2e-05,2]
[420824311,1776589832781,-2040.07006484,9.307e-05,2]
[420824312,1776589832797,-250.0,9.307e-05,2]
[420824313,1776589832807,-227.45754983,9.307e-05,2]
[420824314,1776589832816,-1001.76893914,9.561e-05,2]
[420824315,1776589832826,-1000.0,9.57e-05,2]
[420824316,1776589832835,-4694.89691001,9.698e-05,2]
[420824317,1776589832846,-1363.9028499,9.698e-05,2]
[420824318,1776589832858,-393.653476,9.698e-05,2]
[420824319,1776589832869,-3778.7015311,9.698e-05,2]
[420824320,1776589832880,-627.06523299,9.698e-05,2]
[420824321,1776589832889,-191.36049013,9.78e-05,2]
[420824322,1776589832908,-239.61950987,9.78e-05,2]
[420824323,1776589832917,-225.10227422,9.863e-05,2]
[420824324,1776589832928,-34.89772578,9.863e-05,2]
[420824325,1776589832937,-194.3,0.00010084,2]
[420824326,1776589832946,-786.0,0.0001012,2]
[420824327,1776589832956,-227.2943128,0.00010182,2]
[420824328,1776589832965,-150.0,0.00010304,2]
[420824329,1776589832975,-1048.0,0.00010305,2]
[420824330,1776589832984,-3529.0,0.00010305,2]
[420824331,1776589832994,-628.082,0.00010305,2]
[420824332,1776589833003,-416.0,0.00010305,2]
[420824333,1776589833012,-1631.29433099,0.000106,2]
[420824334,1776589833024,-471.84604647,0.000106,2]
[420824346,1776589837587,-396.85962254,0.000106,2]
[420824347,1776589837597,-1682.65119241,0.00010682,2]
[420824348,1776589837606,-9791.24809589,0.000107,2]
[420824349,1776589837616,-10584.61697756,0.000107,2]
[420824350,1776589837627,-484.06837288,0.000107,2]
[420824351,1776589837640,-999.54,0.000107,2]
[420824352,1776589837651,-5262.04689355,0.000107,2]
[420824353,1776589837710,-1221.80961954,0.000107,2]
[420824392,1776589839644,-13141.12926979,0.000107,2]
[420824393,1776589839806,-14029.80278619,0.000107,2]
[420824394,1776589839917,-13115.82671677,0.000107,2]
[420824395,1776589840022,-3963.85509281,0.000107,2]
[420824396,1776589840183,-1121.76746161,0.00010682,2]
[420824397,1776589840192,-14376.20289558,0.000107,2]
[420824398,1776589840238,-875.97256656,0.000107,2]
[420824470,1776589844816,-451.67652715,0.00010205,2]
[420824471,1776589845008,1010.15,0.000328,120]
[420824477,1776589845575,1010.15,0.00032867,120]
[420824584,1776589986321,1515.99,0.0003287,120]
[420824585,1776590016972,5000.0,0.00032876,120]
[420824586,1776590075055,5000.0,0.00032877,120]
[420824590,1776590302666,1500.0,0.00032876,120]
[420824591,1776590743022,1010.16,0.000328,120]
[420824592,1776590851599,250.0,0.00032877,120]
[420824595,1776590983195,198.2,0.00032877,120]
[420824596,1776591010721,150.0,0.00032,120]
[420824601,1776591031892,-265.41,9.247e-05,2]
[420824602,1776591031902,-250.0,9.333e-05,2]
[420824603,1776591031911,-2000.0,9.522e-05,2]
[420824604,1776591031920,-263.16,9.535e-05,2]
[420824605,1776591031930,-235.92,9.637e-05,2]
[420824606,1776591031940,-187.78006526,9.716e-05,2]
[420824607,1776591031949,-1500.0,9.722e-05,2]
[420824608,1776591031958,-260.0,9.863e-05,2]
[420824609,1776591031968,-195.09,0.00010055,2]
[420824610,1776591031978,-1200.0,0.00010104,2]
[420824611,1776591031987,-40531.9555,0.00010105,2]
[420824612,1776591031996,-250.0,0.00010172,2]
[420824613,1776591032006,-166.46,0.00010187,2]
[420824614,1776591032015,-150.0,0.00010198,2]
[420824615,1776591032025,-500.0,0.00010199,2]
[420824616,1776591032034,-151.0,0.00010199,2]
[420824617,1776591032044,-500.0,0.00010199,2]
[420824618,1776591032053,-200.0,0.00010199,2]
[420824619,1776591032063,-151.0,0.00010199,2]
[420824620,1776591032072,-500.0,0.00010199,2]
[420824621,1776591032082,-189.78674529,0.00010199,2]
[420824622,1776591032093,-151.0,0.00010199,2]
[420824623,1776591032102,-500.0,0.00010199,2]
[420824624,1776591032111,-151.0,0.00010199,2]
[420824625,1776591032120,-500.0,0.00010199,2]
[420824626,1776591032130,-151.0,0.00010199,2]
[420824627,1776591032139,-500.0,0.00010199,2]
[420824628,1776591032148,-500.0,0.00010199,2]
[420824629,1776591032158,-151.0,0.00010199,2]
[420824630,1776591032167,-500.0,0.00010199,2]
[420824631,1776591032176,-151.0,0.00010199,2]
[420824633,1776591032188,-500.0,0.00010199,2]
[420824634,1776591032197,-151.0,0.00010199,2]
[420824635,1776591032206,-395.24826756,0.00010199,2]
[420824636,1776591032215,-151.0,0.00010199,2]
[420824637,1776591032224,-151.0,0.00010199,2]
[420824638,1776591032234,-151.0,0.00010199,2]
[420824639,1776591032243,-151.0,0.00010199,2]
[420824640,1776591032252,-500.0,0.00010199,2]
[420824641,1776591032267,-500.0,0.00010199,2]
[420824642,1776591032276,-500.0,0.00010199,2]
[420824643,1776591032285,-500.0,0.00010199,2]
[420824644,1776591032294,-381.2686437,0.00010199,2]
[420824645,1776591032303,-668.53217178,0.00010199,2]
[420824646,1776591032319,-131.01296167,0.00010199,2]
[420824647,1776591032328,-151.0,0.00010199,2]
[420824648,1776591032338,-151.0,0.00010202,2]
[420824649,1776591032347,-151.0,0.00010202,2]
[420824650,1776591032356,-151.0,0.00010202,2]
[420824651,1776591032365,-1232.50888921,0.00010204,2]
[420824652,1776591032689,-166.47814912,0.00010213,2]
[420824653,1776591034179,-28.61185088,0.00010213,2]
[420824654,1776591034189,-349.73954519,0.00010305,2]
[420824655,1776591034201,-872.17545481,0.00010305,2]
[420824656,1776591034210,-558.49085957,0.00010305,2]
[420824657,1776591037964,-407.99363112,0.00010105,2]
[420824658,1776591037976,-317.0,0.00010105,2]
[420824659,1776591038019,-3962.2502192,0.00010105,2]
[420824660,1776591038031,-1458529.21794968,0.00010105,2]
[420824661,1776591038041,-369.66614043,0.00010305,2]
[420824662,1776591038050,-1048.0,0.00010305,2]
[420824663,1776591038060,-150.0,0.0001032,2]
[420824664,1776591038069,-150.0,0.0001032,2]
[420824665,1776591038079,-150.0,0.0001032,2]
[420824666,1776591038094,-150.0,0.0001032,2]
[420824667,1776591038104,-206.20637935,0.0001032,2]
[420824668,1776591038113,-158.49,0.00010332,2]
[420824669,1776591038123,-1859.6691031,0.00010469,2]
[420824670,1776591038132,-1626.865142,0.00010469,2]
[420824671,1776591038142,-208.3870109,0.00010469,2]
[420824672,1776591038153,-2330.068,0.000105,2]
[420824673,1776591038163,-232.845,0.000105,2]
[420824674,1776591038173,-5000.0,0.000105,2]
[420824675,1776591038183,-2500.0,0.000105,2]
[420824676,1776591038192,-243.86,0.00010529,2]
[420824677,1776591038202,-155.44,0.00010547,2]
[420824678,1776591038211,-500.0,0.00010573,2]
[420824679,1776591038221,-486.86545052,0.00010573,4]
[420824680,1776591038231,-292.11927031,0.00010573,4]
[420824681,1776591038243,-194.74618021,0.00010573,4]
[420824682,1776591038253,-501.74123223,0.00010573,2]
[420824683,1776591038263,-749.0636992,0.00010582,2]
[420824684,1776591038273,-933.0,0.00010592,5]
[420824685,1776591038283,-1093.83820704,0.00010599,3]
[420824686,1776591038294,-951.0,0.000106,5]
[420824687,1776591038303,-151.0,0.000106,2]
[420824688,1776591038315,-1620.62060069,0.00010682,2]
[420824689,1776591038326,-1580.5656435,0.000107,2]
[420824690,1776591038337,-700.0,0.000107,3]
[420824691,1776591038347,-2000.0,0.00010712,2]
[420824692,1776591038358,-501.15034464,0.00010767,2]
[420824693,1776591038369,-2314.58482679,0.00010795,2]
[420824694,1776591038379,-513.54,0.000108,2]
[420824695,1776591038389,-1000.0,0.000108,2]
[420824696,1776591038399,-405.08,0.000108,2]
[420824697,1776591038408,-1500.0,0.000108,3]
[420824698,1776591038417,-250.0,0.00010827,2]
[420824699,1776591038427,-250.0,0.00010827,2]
[420824700,1776591038436,-250.0,0.00010827,2]
[420824701,1776591038446,-220.0,0.00010827,2]
[420824702,1776591038456,-198.198394,0.00010897,2]
[420824703,1776591038465,-500.0,0.00010899,2]
[420824704,1776591038475,-500.0,0.00010899,2]
[420824705,1776591038485,-396.73804291,0.00010899,2]
[420824706,1776591038499,-71908.75608763,0.000109,2]
[420824707,1776591038510,-150.0,0.000109,2]
[420824708,1776591038520,-10244.8121865,0.000109,2]
[420824709,1776591038531,-1970.84,0.000109,2]
[420824710,1776591038543,-492.7,0.000109,2]
[420824711,1776591038554,-492.7,0.000109,2]
[420824712,1776591038564,-151.0,0.000109,2]
[420824713,1776591038574,-151.0,0.000109,2]
[420824714,1776591038584,-151.0,0.000109,2]
[420824715,1776591038593,-151.0,0.000109,2]
[420824716,1776591038603,-1000.0,0.000109,2]
[420824717,1776591038613,-1000.0,0.000109,2]
[420824718,1776591038624,-151.0,0.000109,2]
[420824719,1776591038634,-1000.0,0.000109,2]
[420824720,1776591038644,-1000.0,0.000109,2]
[420824721,1776591038653,-1000.0,0.000109,2]
[420824722,1776591038663,-1000.0,0.000109,2]
[420824723,1776591038673,-1000.0,0.000109,2]
[420824724,1776591038682,-1000.0,0.000109,2]
[420824725,1776591038692,-1000.0,0.000109,2]
[420824726,1776591038703,-1000.0,0.000109,2]
[420824727,1776591038713,-1000.0,0.000109,2]
[420824728,1776591038722,-1000.0,0.000109,2]
[420824729,1776591038731,-1000.0,0.000109,2]
[420824730,1776591038741,-1000.0,0.000109,2]
[420824731,1776591038750,-1000.0,0.000109,2]
[420824732,1776591038760,-1000.0,0.000109,2]
[420824733,1776591038769,-1000.0,0.000109,2]
[420824734,1776591038779,-1000.0,0.000109,2]
[420824735,1776591038788,-1000.0,0.000109,2]
[420824736,1776591038797,-1000.0,0.000109,2]
[420824737,1776591038807,-1000.0,0.000109,2]
[420824738,1776591038816,-1000.0,0.000109,2]
[420824739,1776591038826,-151.0,0.000109,2]
[420824740,1776591038836,-2300.0,0.000109,3]
[420824741,1776591038845,-551.322944,0.000109,2]
[420824742,1776591038856,-551.322944,0.000109,2]
[420824743,1776591038867,-551.322944,0.000109,2]
[420824744,1776591038879,-551.322944,0.000109,2]
[420824746,1776591038892,-551.322944,0.000109,2]
[420824748,1776591038902,-551.322944,0.000109,2]
[420824750,1776591038912,-551.322944,0.000109,2]
[420824752,1776591038922,-551.322944,0.000109,2]
[420824754,1776591038932,-151.0,0.000109,2]
[420824756,1776591038943,-151.0,0.000109,2]
[420824758,1776591038953,-333.33333,0.000109,2]
[420824760,1776591038963,-296.340823,0.000109,2]
[420824762,1776591038973,-296.340823,0.000109,2]
[420824764,1776591038982,-296.340823,0.000109,2]
[420824771,1776591039028,-296.340823,0.000109,2]
[420824774,1776591039047,-296.340823,0.000109,2]
[420824777,1776591039071,-296.340823,0.000109,2]
[420824779,1776591039100,-296.340823,0.000109,2]
[420824780,1776591039123,-296.340823,0.000109,2]
[420824782,1776591039141,-150.54539045,0.00010933,21]
[420824783,1776591039158,-500.0,0.00010958,2]
[420824784,1776591039176,-500.0,0.00010958,3]
[420824785,1776591039198,-500.0,0.00010958,4]
[420824786,1776591039218,-500.0,0.00010958,5]
[420824787,1776591039232,-500.0,0.00010958,6]
[420824788,1776591039252,-500.0,0.00010958,7]
[420824789,1776591039272,-500.0,0.00010958,2]
[420824790,1776591039298,-500.0,0.00010958,2]
[420824791,1776591039314,-500.0,0.00010958,3]
[420824792,1776591039336,-500.0,0.00010958,4]
[420824793,1776591039419,-217.332926,0.00010958,2]
[420824794,1776591039444,-215.0,0.00010958,2]
[420824795,1776591039471,-215.0,0.00010958,2]
[420824796,1776591039494,-500.89752507,0.00010959,2]
[420824797,1776591039517,-3240.0,0.00010959,2]
[420824798,1776591039539,-150.0,0.00010959,2]
[420824799,1776591039563,-151.0,0.00010959,2]
[420824800,1776591039583,-192.074026,0.00010959,2]
[420824801,1776591039604,-235.77,0.00011,2]
[420824802,1776591039626,-235.77,0.00011,2]
[420824803,1776591039646,-446.0,0.00011,2]
[420824804,1776591039665,-446.0,0.00011,2]
[420824805,1776591039699,-2463.82,0.00011,2]
[420824806,1776591039722,-2463.82,0.00011,2]
[420824807,1776591039745,-870.44,0.00011,2]
[420824808,1776591039767,-870.44,0.00011,2]
[420824809,1776591039790,-156.41,0.00011001,2]
[420824810,1776591039810,-2325.18437565,0.0001101,2]
[420824811,1776591039831,-152.461784,0.00011019,2]
[420824812,1776591039851,-152.817866,0.00011019,2]
[420824814,1776591039869,-151.0,0.00011019,2]
[420824815,1776591039887,-151.0,0.00011019,2]
[420824816,1776591039906,-429.22,0.00011019,2]
[420824817,1776591039924,-300.0,0.00011098,2]
[420824819,1776591039943,-1093.83820704,0.00011098,3]
[420824821,1776591039961,-36913.79286705,0.00011099,2]
[420824823,1776591039978,-151.0,0.00011099,2]
[420824826,1776591039995,-151.0,0.00011099,2]
[420824828,1776591040014,-172.473845,0.00011099,2]
[420824830,1776591040031,-551.322944,0.00011099,2]
[420824831,1776591040047,-551.322944,0.00011099,2]
[420824832,1776591040065,-551.322944,0.00011099,2]
[420824833,1776591040081,-551.322944,0.00011099,2]
[420824834,1776591040098,-551.322944,0.00011099,2]
[420824835,1776591040116,-551.322944,0.00011099,2]
[420824836,1776591040134,-551.322944,0.00011099,2]
[420824837,1776591040149,-551.322944,0.00011099,2]
[420824838,1776591040166,-551.322944,0.00011099,2]
[420824839,1776591040182,-551.322944,0.00011099,2]
[420824840,1776591040198,-551.322944,0.00011099,2]
[420824841,1776591040224,-551.322936,0.00011099,2]
[420824842,1776591040245,-283.96107,0.00011099,2]
[420824843,1776591040265,-296.340823,0.00011099,2]
[420824844,1776591040288,-296.340823,0.00011099,2]
[420824845,1776591040307,-296.340823,0.00011099,2]
[420824846,1776591040327,-296.340823,0.00011099,2]
[420824847,1776591040347,-296.340823,0.00011099,2]
[420824848,1776591040367,-296.340823,0.00011099,2]
[420824849,1776591040385,-296.340823,0.00011099,2]
[420824850,1776591040404,-296.340823,0.00011099,2]
[420824851,1776591040422,-333.33333,0.000111,2]
[420824852,1776591040439,-614.45379783,0.00011172,2]
[420824853,1776591040457,-249.27,0.00011202,2]
[420824854,1776591040475,-151.0,0.00011202,2]
[420824855,1776591040492,-164.0,0.00011208,2]
[420824856,1776591040509,-150.0,0.00011233,2]
[420824857,1776591040526,-2000.0,0.0001124,2]
[420824858,1776591040543,-203.0,0.0001124,2]
[420824860,1776591040560,-2000.0,0.0001124,2]
[420824863,1776591040576,-1054.05,0.0001124,2]
[420824866,1776591040593,-413.92,0.0001124,2]
[420824869,1776591040609,-374.96,0.0001128,2]
[420824871,1776591040625,-333.33333,0.000113,2]
[420824872,1776591040642,-296.340823,0.00011359,2]
[420824873,1776591040657,-296.340823,0.00011359,2]
[420824874,1776591040674,-296.340823,0.00011359,2]
[420824875,1776591040689,-296.340829,0.00011359,2]
[420824876,1776591040705,-401.41,0.000114,2]
[420824877,1776591040721,-925.58,0.00011453,2]
[420824878,1776591040738,-1600.0,0.0001148,2]
[420824879,1776591040758,-20011.10217372,0.000115,2]
[420824880,1776591040778,-333.33334,0.000115,2]
[420824881,1776591040799,-2016.77,0.00011507,2]
[420824882,1776591040816,-206.64,0.00011517,2]
[420824883,1776591040836,-150.0,0.00011559,2]
[420824884,1776591040854,-534.62,0.00011694,2]
[420824885,1776591040873,-333.33333,0.000117,2]
[420824886,1776591040890,-325.83,0.00011754,2]
[420824887,1776591040907,-353.46,0.00011754,2]
[420824888,1776591040926,-606.32,0.00011772,2]
[420824889,1776591040943,-215.0,0.0001178,2]
[420824890,1776591040959,-3000.0,0.000118,4]
[420824891,1776591040976,-150.0,0.00011834,2]
[420824892,1776591040992,-500.0,0.00011848,5]
[420824893,1776591041008,-1093.83820704,0.00011848,3]
[420824894,1776591041023,-300.0,0.00011848,2]
[420824895,1776591041039,-214966.04,0.00011849,2]
[420824896,1776591041056,-166.46,0.00011869,2]
[420824897,1776591041071,-300.0,0.00011899,2]
[420824898,1776591041086,-250.14,0.00011899,8]
[420824899,1776591041103,-68393.06665582,0.000119,2]
[420824900,1776591041119,-1484.2183,0.000119,2]
[420824901,1776591041141,-3800.0,0.000119,4]
[420824902,1776591041157,-333.33333,0.000119,2]
[420824903,1776591041174,-166.65918846,0.000119,2]
[420824904,1776591041191,-2000.0,0.00011902,2]
[420824905,1776591041207,-250.0,0.00011973,2]
[420824906,1776591041223,-15486.0,0.00011973,2]
[420824907,1776591041239,-203.028362,0.00011973,2]
[420824908,1776591041256,-203.028362,0.00011973,2]
[420824909,1776591041271,-203.028362,0.00011973,2]
[420824910,1776591041287,-203.028362,0.00011973,2]
[420824911,1776591041303,-203.028362,0.00011973,2]
[420824912,1776591041322,-203.028362,0.00011973,2]
[420824913,1776591041339,-203.028362,0.00011973,2]
[420824914,1776591041355,-203.028362,0.00011973,2]
[420824915,1776591041372,-203.028362,0.00011973,2]
[420824916,1776591041388,-203.028362,0.00011973,2]
[420824917,1776591041404,-203.028362,0.00011973,2]
[420824918,1776591041420,-203.028362,0.00011973,2]
[420824919,1776591041436,-203.028362,0.00011973,2]
[420824920,1776591041452,-203.028362,0.00011973,2]
[420824921,1776591041469,-203.028362,0.00011973,2]
[420824922,1776591041485,-203.028362,0.00011973,2]
[420824923,1776591041500,-203.028362,0.00011973,2]
[420824924,1776591041517,-203.028362,0.00011973,2]
[420824925,1776591041532,-203.028362,0.00011973,2]
[420824926,1776591041547,-203.028365,0.00011973,2]
[420824927,1776591041562,-644.45,0.00011988,2]
[420824928,1776591041577,-2000.0,0.00011988,2]
[420824929,1776591041593,-2000.0,0.00011988,2]
[420824930,1776591041607,-2000.0,0.00011988,2]
[420824931,1776591041623,-306.36,0.00011988,2]
[420824932,1776591041639,-2000.0,0.00011988,2]
[420824933,1776591041654,-2000.0,0.00011988,2]
[420824934,1776591041670,-1000.08,0.00011988,2]
[420824935,1776591041685,-155.0,0.00011989,2]
[420824936,1776591041700,-300.0,0.00011999,2]
[420824937,1776591041716,-13753.0145179,0.00011999,2]